fUSD/lending_fUSD_20260519
["ID","MTS","AMOUNT","RATE_DAILY","PERIOD"]
[422594186,1779135038000,-500.0,0.00013933,2]
[422594187,1779135038000,-25056.16924023,0.00013947,2]
[422594137,1779135038000,-500.0,0.00013698,2]
[422594189,1779135038000,-4733.57306459,0.0001399,2]
[422594174,1779135038000,-500.0,0.00013698,2]
[422594160,1779135038000,-500.0,0.00013698,2]
[422594183,1779135038000,-532.840658,0.00013731,2]
[422594158,1779135038000,-500.0,0.00013698,2]
[422594157,1779135038000,-500.0,0.00013698,2]
[422594130,1779135038000,-500.0,0.00013698,2]
[422594131,1779135038000,-208.7067028,0.00013698,2]
[422594128,1779135038000,-500.0,0.00013698,2]
[422594129,1779135038000,-500.0,0.00013698,2]
[422594133,1779135038000,-527.38709912,0.00013698,2]
[422594134,1779135038000,-500.0,0.00013698,2]
[422594132,1779135038000,-500.0,0.00013698,2]
[422594135,1779135038000,-500.0,0.00013698,2]
[422594136,1779135038000,-500.0,0.00013698,2]
[422594140,1779135038000,-500.0,0.00013698,2]
[422594145,1779135038000,-1153.83,0.00013698,2]
[422594149,1779135038000,-500.0,0.00013698,2]
[422594146,1779135038000,-500.0,0.00013698,2]
[422594126,1779135038000,-500.0,0.00013698,2]
[422594151,1779135038000,-500.0,0.00013698,2]
[422594148,1779135038000,-500.0,0.00013698,2]
[422594156,1779135038000,-500.0,0.00013698,2]
[422594153,1779135038000,-500.0,0.00013698,2]
[422594154,1779135038000,-500.0,0.00013698,2]
[422594141,1779135038000,-500.0,0.00013698,2]
[422594144,1779135038000,-1153.83,0.00013698,2]
[422594155,1779135038000,-500.0,0.00013698,2]
[422594152,1779135038000,-500.0,0.00013698,2]
[422594139,1779135038000,-500.0,0.00013698,2]
[422594142,1779135038000,-1153.83,0.00013698,2]
[422594150,1779135038000,-500.0,0.00013698,2]
[422594147,1779135038000,-500.0,0.00013698,2]
[422594143,1779135038000,-1153.83,0.00013698,2]
[422594232,1779135039000,-500.0,0.00014817,2]
[422594223,1779135039000,-1608.873608,0.00014673,2]
[422594226,1779135039000,-539.44477484,0.00014732,2]
[422594230,1779135039000,-539.44477484,0.00014816,2]
[422594225,1779135039000,-1695.77860141,0.00014732,2]
[422594222,1779135039000,-884.436804,0.00014673,2]
[422594224,1779135039000,-5000.0,0.000147,2]
[422594221,1779135039000,-160.0,0.00014673,2]
[422594227,1779135039000,-2258.8871,0.000148,2]
[422594228,1779135039000,-6746.1083016,0.00014816,2]
[422594242,1779135039000,-500.0,0.00014824,2]
[422594229,1779135039000,-1695.77860139,0.00014816,2]
[422594233,1779135039000,-500.0,0.00014817,2]
[422594239,1779135039000,-500.0,0.00014824,2]
[422594231,1779135039000,-500.0,0.00014817,2]
[422594238,1779135039000,-23111.9530067,0.00014818,2]
[422594237,1779135039000,-500.0,0.00014817,2]
[422594241,1779135039000,-500.0,0.00014824,2]
[422594240,1779135039000,-500.0,0.00014824,2]
[422594236,1779135039000,-699.91,0.00014817,2]
[422594235,1779135039000,-500.0,0.00014817,2]
[422594243,1779135039000,-500.0,0.00014824,2]
[422594244,1779135039000,-500.0,0.00014824,2]
[422594254,1779135039000,-626.0,0.00014824,5]
[422594247,1779135039000,-500.0,0.00014824,2]
[422594250,1779135039000,-500.0,0.00014824,2]
[422594220,1779135039000,-159.0,0.00014614,2]
[422594234,1779135039000,-577.14414612,0.00014817,2]
[422594219,1779135039000,-298.26,0.000146,2]
[422594248,1779135039000,-500.0,0.00014824,2]
[422594217,1779135039000,-5190.587969,0.00014528,2]
[422594194,1779135039000,-166.66,0.0001411,2]
[422594193,1779135039000,-186.29,0.00014056,2]
[422594191,1779135039000,-27990.28400786,0.00014011,2]
[422594192,1779135039000,-2000.0,0.00014043,2]
[422594190,1779135039000,-211.69,0.00014,2]
[422594195,1779135039000,-736.0,0.00014123,2]
[422594196,1779135039000,-3292.0,0.00014169,2]
[422594201,1779135039000,-2310.59015461,0.0001421,7]
[422594205,1779135039000,-150.0,0.00014247,21]
[422594200,1779135039000,-167.0,0.00014207,2]
[422594204,1779135039000,-150.0,0.00014247,21]
[422594203,1779135039000,-166.66,0.00014247,2]
[422594197,1779135039000,-219.748607,0.0001417,2]
[422594198,1779135039000,-856.41927532,0.00014184,2]
[422594206,1779135039000,-163.72,0.00014282,2]
[422594202,1779135039000,-187.956943,0.00014241,2]
[422594199,1779135039000,-150.0,0.00014206,2]
[422594207,1779135039000,-3207.52405205,0.00014286,2]
[422594208,1779135039000,-166.66,0.00014384,2]
[422594213,1779135039000,-27990.28400786,0.00014455,2]
[422594218,1779135039000,-2013.69,0.000146,2]
[422594209,1779135039000,-170.53,0.00014415,2]
[422594212,1779135039000,-25056.16924023,0.00014423,2]
[422594211,1779135039000,-7903.49171147,0.00014419,2]
[422594210,1779135039000,-4593.09868907,0.00014419,2]
[422594216,1779135039000,-2675.293984,0.00014528,2]
[422594214,1779135039000,-151.56276235,0.00014481,2]
[422594215,1779135039000,-160.0,0.00014528,2]
[422594249,1779135039000,-500.0,0.00014824,2]
[422594314,1779135039000,-500.0,0.00014999,2]
[422594258,1779135039000,-285.28537124,0.00014832,2]
[422594294,1779135039000,-500.0,0.00014999,2]
[422594289,1779135039000,-27101.0117624,0.00014928,2]
[422594287,1779135039000,-432901.560882,0.00014904,2]
[422594286,1779135039000,-500.0,0.00014903,2]
[422594291,1779135039000,-604.94776535,0.00014983,2]
[422594288,1779135039000,-500.0,0.00014927,2]
[422594293,1779135039000,-1541.77078702,0.0001499,2]
[422594292,1779135039000,-163.72,0.0001499,2]
[422594290,1779135039000,-175.92347,0.00014982,2]
[422594297,1779135039000,-500.0,0.00014999,2]
[422594305,1779135039000,-500.0,0.00014999,2]
[422594296,1779135039000,-500.0,0.00014999,2]
[422594308,1779135039000,-1153.83,0.00014999,2]
[422594298,1779135039000,-500.0,0.00014999,2]
[422594307,1779135039000,-500.0,0.00014999,2]
[422594299,1779135039000,-534.8114487,0.00014999,2]
[422594300,1779135039000,-500.0,0.00014999,2]
[422594301,1779135039000,-504.19636444,0.00014999,2]
[422594303,1779135039000,-500.0,0.00014999,2]
[422594304,1779135039000,-500.0,0.00014999,2]
[422594302,1779135039000,-500.0,0.00014999,2]
[422594312,1779135039000,-1153.83,0.00014999,2]
[422594309,1779135039000,-1153.83,0.00014999,2]
[422594311,1779135039000,-1153.83,0.00014999,2]
[422594313,1779135039000,-1153.83,0.00014999,2]
[422594245,1779135039000,-1153.83,0.00014824,2]
[422594310,1779135039000,-1153.83,0.00014999,2]
[422594295,1779135039000,-500.0,0.00014999,2]
[422594284,1779135039000,-699.91,0.00014903,2]
[422594306,1779135039000,-500.0,0.00014999,2]
[422594283,1779135039000,-699.91,0.00014903,2]
[422594246,1779135039000,-1153.83,0.00014824,2]
[422594256,1779135039000,-391957.96631669,0.00014825,2]
[422594285,1779135039000,-500.0,0.00014903,2]
[422594252,1779135039000,-500.0,0.00014824,2]
[422594251,1779135039000,-699.91,0.00014824,2]
[422594260,1779135039000,-1541.77078702,0.00014894,2]
[422594259,1779135039000,-150.0,0.0001485,2]
[422594263,1779135039000,-3463.37509711,0.000149,3]
[422594262,1779135039000,-787.0,0.000149,5]
[422594261,1779135039000,-505.39999791,0.00014899,2]
[422594264,1779135039000,-27990.28400786,0.000149,2]
[422594265,1779135039000,-25056.16924023,0.000149,2]
[422594266,1779135039000,-6746.1083016,0.000149,2]
[422594268,1779135039000,-539.44477484,0.000149,2]
[422594267,1779135039000,-1695.77860139,0.000149,2]
[422594280,1779135039000,-500.0,0.00014903,2]
[422594282,1779135039000,-500.0,0.00014903,2]
[422594269,1779135039000,-3207.52405205,0.000149,2]
[422594272,1779135039000,-1446.2771396,0.000149,2]
[422594279,1779135039000,-500.0,0.00014903,2]
[422594281,1779135039000,-500.0,0.00014903,2]
[422594274,1779135039000,-500.0,0.00014903,2]
[422594277,1779135039000,-500.0,0.00014903,2]
[422594278,1779135039000,-500.0,0.00014903,2]
[422594275,1779135039000,-573.78,0.00014903,2]
[422594273,1779135039000,-856.41927532,0.000149,2]
[422594271,1779135039000,-172.86314933,0.000149,2]
[422594270,1779135039000,-172.86314934,0.000149,2]
[422594276,1779135039000,-500.0,0.00014903,2]
[422594351,1779135040000,-200.0,0.00015,2]
[422594352,1779135040000,-877.78,0.00015,2]
[422594349,1779135040000,-1000.0,0.00015,2]
[422594359,1779135040000,-151.0,0.00015,2]
[422594358,1779135040000,-421.40658,0.00015,2]
[422594354,1779135040000,-8408373.8118001,0.00015,2]
[422594356,1779135040000,-151.0,0.00015,2]
[422594353,1779135040000,-238.6149222,0.00015,2]
[422594350,1779135040000,-1000.0,0.00015,2]
[422594357,1779135040000,-151.0,0.00015,2]
[422594355,1779135040000,-4465964.56942842,0.00015,2]
[422594361,1779135040000,-500.0,0.00015,2]
[422594348,1779135040000,-1000.0,0.00015,2]
[422594371,1779135040000,-167.0,0.00015,2]
[422594401,1779135040000,-1541.0,0.00015,2]
[422594360,1779135040000,-500.0,0.00015,2]
[422594362,1779135040000,-198.727669,0.00015,2]
[422594364,1779135040000,-151.0,0.00015,2]
[422594379,1779135040000,-455.926806,0.00015,2]
[422594377,1779135040000,-172.97403995,0.00015,2]
[422594367,1779135040000,-167.0,0.00015,2]
[422594375,1779135040000,-167.0,0.00015,2]
[422594383,1779135040000,-455.926806,0.00015,2]
[422594381,1779135040000,-455.926806,0.00015,2]
[422594385,1779135040000,-455.926806,0.00015,2]
[422594396,1779135040000,-1541.0,0.00015,2]
[422594399,1779135040000,-1541.0,0.00015,2]
[422594347,1779135040000,-810.11,0.00015,2]
[422594373,1779135040000,-167.0,0.00015,2]
[422594344,1779135040000,-201.76384242,0.00015,2]
[422594316,1779135040000,-500.0,0.00014999,2]
[422594341,1779135040000,-815232.16436507,0.00015,2]
[422594389,1779135040000,-455.926806,0.00015,2]
[422594317,1779135040000,-500.0,0.00014999,2]
[422594319,1779135040000,-500.0,0.00014999,2]
[422594321,1779135040000,-200.16128818,0.00014999,2]
[422594315,1779135040000,-500.0,0.00014999,2]
[422594320,1779135040000,-500.0,0.00014999,2]
[422594318,1779135040000,-500.0,0.00014999,2]
[422594325,1779135040000,-500.0,0.00014999,2]
[422594322,1779135040000,-500.0,0.00014999,2]
[422594326,1779135040000,-500.0,0.00014999,2]
[422594323,1779135040000,-500.0,0.00014999,2]
[422594327,1779135040000,-500.0,0.00014999,2]
[422594324,1779135040000,-500.0,0.00014999,2]
[422594328,1779135040000,-500.0,0.00014999,2]
[422594333,1779135040000,-699.91,0.00014999,2]
[422594331,1779135040000,-699.91,0.00014999,2]
[422594329,1779135040000,-500.0,0.00014999,2]
[422594332,1779135040000,-699.91,0.00014999,2]
[422594330,1779135040000,-699.91,0.00014999,2]
[422594335,1779135040000,-300.0,0.00014999,2]
[422594345,1779135040000,-336.17186286,0.00015,21]
[422594346,1779135040000,-1000.0,0.00015,2]
[422594334,1779135040000,-516.88243336,0.00014999,2]
[422594336,1779135040000,-666.0,0.00014999,2]
[422594338,1779135040000,-300.0,0.00014999,2]
[422594340,1779135040000,-300.0,0.00014999,2]
[422594337,1779135040000,-300.0,0.00014999,2]
[422594339,1779135040000,-300.0,0.00014999,2]
[422594342,1779135040000,-1000.0,0.00015,2]
[422594343,1779135040000,-1000.0,0.00015,2]
[422594391,1779135040000,-455.926806,0.00015,2]
[422594368,1779135040000,-167.0,0.00015,2]
[422594393,1779135040000,-455.926806,0.00015,2]
[422594457,1779135040000,-4609.0,0.00015586,2]
[422594466,1779135040000,-421.40659,0.000158,2]
[422594467,1779135040000,-300.0,0.00015811,2]
[422594468,1779135040000,-300.0,0.00015811,2]
[422594458,1779135040000,-421.40658,0.000156,2]
[422594456,1779135040000,-150.0,0.00015568,2]
[422594465,1779135040000,-3862.80568896,0.0001578,2]
[422594462,1779135040000,-4474.91678066,0.00015678,2]
[422594460,1779135040000,-200.0,0.00015609,2]
[422594464,1779135040000,-350.0,0.00015723,2]
[422594459,1779135040000,-2000.0,0.00015603,2]
[422594463,1779135040000,-10000.0,0.00015712,2]
[422594461,1779135040000,-161.38,0.00015613,2]
[422594469,1779135040000,-173.04164456,0.00015811,2]
[422594481,1779135040000,-928.0,0.000163,2]
[422594474,1779135040000,-699.91,0.00015847,2]
[422594475,1779135040000,-300.0,0.00016,2]
[422594472,1779135040000,-500.0,0.00015847,2]
[422594480,1779135040000,-770.0,0.000163,2]
[422594478,1779135040000,-700.0,0.00016222,2]
[422594470,1779135040000,-15000.0,0.00015812,2]
[422594476,1779135040000,-150.0,0.00016,2]
[422594473,1779135040000,-500.0,0.00015847,2]
[422594471,1779135040000,-6111.0,0.0001584,2]
[422594477,1779135040000,-421.40658,0.00016,2]
[422594479,1779135040000,-517.0,0.000163,2]
[422594483,1779135040000,-153.0,0.00016438,2]
[422594482,1779135040000,-401.5,0.00016438,2]
[422594403,1779135040000,-1581.5461074,0.00015,2]
[422594454,1779135040000,-1782.02143409,0.00015549,2]
[422594450,1779135040000,-200.0,0.00015455,2]
[422594484,1779135040000,-1897.026643,0.00016707,2]
[422594449,1779135040000,-1206.050187,0.00015407,2]
[422594407,1779135040000,-151.0,0.00015,2]
[422594387,1779135040000,-455.926806,0.00015,2]
[422594405,1779135040000,-151.0,0.00015,2]
[422594409,1779135040000,-151.0,0.00015,2]
[422594413,1779135040000,-151.0,0.00015,2]
[422594411,1779135040000,-151.0,0.00015,2]
[422594415,1779135040000,-151.0,0.00015,2]
[422594425,1779135040000,-336.17186286,0.0001502,21]
[422594446,1779135040000,-200.0,0.00015301,2]
[422594421,1779135040000,-330.0,0.00015014,3]
[422594423,1779135040000,-336.17186286,0.00015014,21]
[422594419,1779135040000,-336.17186286,0.0001501,21]
[422594427,1779135040000,-151.0,0.00015068,2]
[422594430,1779135040000,-151.0,0.00015068,2]
[422594417,1779135040000,-165.774374,0.00015,2]
[422594429,1779135040000,-151.0,0.00015068,2]
[422594448,1779135040000,-421.40659,0.000154,2]
[422594436,1779135040000,-350.0,0.00015121,2]
[422594447,1779135040000,-1303.90322876,0.00015387,2]
[422594455,1779135040000,-211.69,0.00015556,2]
[422594452,1779135040000,-1252.0,0.00015492,2]
[422594451,1779135040000,-186.29,0.00015462,2]
[422594453,1779135040000,-269.989902,0.00015496,2]
[422594444,1779135040000,-166.66,0.00015249,2]
[422594442,1779135040000,-421.40658,0.000152,2]
[422594439,1779135040000,-200.0,0.0001515,2]
[422594440,1779135040000,-264.36396601,0.00015168,2]
[422594432,1779135040000,-151.0,0.00015068,2]
[422594434,1779135040000,-350.0,0.0001507,2]
[422594445,1779135040000,-3648.128161,0.00015255,2]
[422594523,1779135041000,-500.0,0.00017808,2]
[422594528,1779135041000,-1153.83,0.00017904,2]
[422594520,1779135041000,-500.0,0.00017808,2]
[422594522,1779135041000,-500.0,0.00017808,2]
[422594529,1779135041000,-300.0,0.00017964,2]
[422594513,1779135041000,-500.0,0.00017808,2]
[422594518,1779135041000,-500.0,0.00017808,2]
[422594530,1779135041000,-500.0,0.00017965,2]
[422594525,1779135041000,-500.0,0.00017808,2]
[422594527,1779135041000,-398.2405027,0.00017904,2]
[422594519,1779135041000,-500.0,0.00017808,2]
[422594524,1779135041000,-500.0,0.00017808,2]
[422594521,1779135041000,-500.0,0.00017808,2]
[422594543,1779135041000,-2005.9555727,0.00017965,2]
[422594542,1779135041000,-399.18681661,0.00017965,2]
[422594532,1779135041000,-721.12765535,0.00017965,2]
[422594537,1779135041000,-500.0,0.00017965,2]
[422594531,1779135041000,-200.0,0.00017965,2]
[422594533,1779135041000,-500.0,0.00017965,2]
[422594535,1779135041000,-500.0,0.00017965,2]
[422594534,1779135041000,-500.0,0.00017965,2]
[422594536,1779135041000,-500.0,0.00017965,2]
[422594541,1779135041000,-500.0,0.00017965,2]
[422594538,1779135041000,-500.0,0.00017965,2]
[422594539,1779135041000,-500.0,0.00017965,2]
[422594540,1779135041000,-168.82441293,0.00017965,2]
[422594515,1779135041000,-500.0,0.00017808,2]
[422594526,1779135041000,-500.0,0.00017808,2]
[422594510,1779135041000,-628.96718285,0.00017808,2]
[422594500,1779135041000,-200.0,0.00017445,2]
[422594514,1779135041000,-500.0,0.00017808,2]
[422594545,1779135041000,-151.0,0.00017965,2]
[422594485,1779135041000,-156.85,0.00016712,2]
[422594486,1779135041000,-151.0,0.00016797,2]
[422594487,1779135041000,-186.29,0.00016867,2]
[422594492,1779135041000,-169.3,0.00017008,2]
[422594490,1779135041000,-810.11,0.00017,2]
[422594488,1779135041000,-627.146097,0.00016874,2]
[422594491,1779135041000,-2005.0,0.00017001,2]
[422594489,1779135041000,-190.1802475,0.00016951,7]
[422594494,1779135041000,-6453.0,0.00017145,2]
[422594495,1779135041000,-2000.0,0.00017163,2]
[422594493,1779135041000,-211.69,0.00017112,2]
[422594504,1779135041000,-1583.05,0.00017572,2]
[422594512,1779135041000,-500.0,0.00017808,2]
[422594496,1779135041000,-170.53,0.00017298,2]
[422594503,1779135041000,-1100.48,0.00017572,2]
[422594499,1779135041000,-159.41,0.00017421,2]
[422594501,1779135041000,-611.0,0.00017479,2]
[422594502,1779135041000,-300.0,0.00017513,2]
[422594498,1779135041000,-4389.55,0.000174,2]
[422594517,1779135041000,-500.0,0.00017808,2]
[422594506,1779135041000,-500.0,0.00017808,2]
[422594516,1779135041000,-500.0,0.00017808,2]
[422594505,1779135041000,-500.0,0.00017808,2]
[422594507,1779135041000,-500.0,0.00017808,2]
[422594508,1779135041000,-500.0,0.00017808,2]
[422594509,1779135041000,-500.0,0.00017808,2]
[422594511,1779135041000,-500.0,0.00017808,2]
[422594497,1779135041000,-478.0,0.0001731,2]
[422594547,1779135041000,-151.0,0.00017965,2]
[422594544,1779135041000,-668.65185757,0.00017965,2]
[422594555,1779135041000,-151.0,0.00017965,2]
[422594582,1779135041000,-201.9329,0.00018008,2]
[422594585,1779135041000,-198.39535058,0.000182,2]
[422594583,1779135041000,-201.9329,0.00018008,2]
[422594589,1779135041000,-198.39535058,0.000185,2]
[422594591,1779135041000,-2080.17592889,0.00018513,2]
[422594593,1779135041000,-1224.0,0.00018568,2]
[422594586,1779135041000,-200.0,0.00018267,2]
[422594592,1779135041000,-1270.0,0.00018568,2]
[422594584,1779135041000,-201.9329,0.00018008,2]
[422594590,1779135041000,-200.0,0.00018513,2]
[422594587,1779135041000,-198.39535058,0.000184,2]
[422594581,1779135041000,-501.50270021,0.00018,2]
[422594588,1779135041000,-401.5,0.0001841,2]
[422594594,1779135041000,-1162.68,0.00018568,2]
[422594596,1779135041000,-211.69,0.00018667,2]
[422594604,1779135041000,-150.0,0.00018791,2]
[422594598,1779135041000,-2000.0,0.00018723,2]
[422594597,1779135041000,-1583.05,0.0001872,2]
[422594606,1779135041000,-250.0,0.00018791,2]
[422594602,1779135041000,-150.0,0.00018791,2]
[422594600,1779135041000,-470.17,0.00018771,2]
[422594599,1779135041000,-8466.0,0.00018767,2]
[422594601,1779135041000,-200.0,0.00018791,2]
[422594605,1779135041000,-150.0,0.00018791,2]
[422594603,1779135041000,-150.0,0.00018791,2]
[422594608,1779135041000,-185.0,0.00018791,2]
[422594607,1779135041000,-243.621,0.00018791,2]
[422594554,1779135041000,-151.0,0.00017965,2]
[422594609,1779135041000,-3544.0,0.00018791,2]
[422594580,1779135041000,-350.0,0.00018,2]
[422594575,1779135041000,-151.0,0.00017965,2]
[422594595,1779135041000,-3191.459,0.00018568,2]
[422594576,1779135041000,-151.0,0.00017965,2]
[422594546,1779135041000,-151.0,0.00017965,2]
[422594578,1779135041000,-150.0,0.00017991,2]
[422594550,1779135041000,-151.0,0.00017965,2]
[422594552,1779135041000,-151.0,0.00017965,2]
[422594549,1779135041000,-151.0,0.00017965,2]
[422594553,1779135041000,-151.0,0.00017965,2]
[422594551,1779135041000,-151.0,0.00017965,2]
[422594548,1779135041000,-151.0,0.00017965,2]
[422594567,1779135041000,-151.0,0.00017965,2]
[422594556,1779135041000,-1113.4286202,0.00017965,2]
[422594568,1779135041000,-151.0,0.00017965,2]
[422594558,1779135041000,-151.0,0.00017965,2]
[422594566,1779135041000,-151.0,0.00017965,2]
[422594564,1779135041000,-151.0,0.00017965,2]
[422594557,1779135041000,-151.0,0.00017965,2]
[422594572,1779135041000,-151.0,0.00017965,2]
[422594560,1779135041000,-151.0,0.00017965,2]
[422594562,1779135041000,-151.0,0.00017965,2]
[422594561,1779135041000,-151.0,0.00017965,2]
[422594563,1779135041000,-151.0,0.00017965,2]
[422594565,1779135041000,-151.0,0.00017965,2]
[422594573,1779135041000,-151.0,0.00017965,2]
[422594569,1779135041000,-151.0,0.00017965,2]
[422594571,1779135041000,-151.0,0.00017965,2]
[422594570,1779135041000,-151.0,0.00017965,2]
[422594574,1779135041000,-151.0,0.00017965,2]
[422594577,1779135041000,-151.0,0.00017965,2]
[422594559,1779135041000,-151.0,0.00017965,2]
[422594579,1779135041000,-198.39535058,0.00018,2]
[422594691,1779135042000,-200.0,0.0002,10]
[422594702,1779135042000,-2000.0,0.0002,2]
[422594673,1779135042000,-391.0,0.0002,2]
[422594700,1779135042000,-154.25318114,0.0002,20]
[422594689,1779135042000,-2000.0,0.0002,2]
[422594686,1779135042000,-338.0,0.0002,2]
[422594688,1779135042000,-2000.0,0.0002,2]
[422594682,1779135042000,-155.0,0.0002,2]
[422594695,1779135042000,-194.168,0.0002,2]
[422594696,1779135042000,-2000.0,0.0002,2]
[422594684,1779135042000,-1312.77,0.0002,2]
[422594675,1779135042000,-157.0,0.0002,2]
[422594693,1779135042000,-3546.0,0.0002,2]
[422594698,1779135042000,-2000.0,0.0002,2]
[422594704,1779135042000,-300.0,0.000201,10]
[422594727,1779135042000,-245.0,0.00020731,2]
[422594708,1779135042000,-150.0,0.00020137,2]
[422594679,1779135042000,-289.0,0.0002,2]
[422594735,1779135042000,-391.0,0.00021,2]
[422594731,1779135042000,-161.0,0.00021,2]
[422594733,1779135042000,-181.0,0.00021,2]
[422594729,1779135042000,-11878.0,0.00020745,2]
[422594723,1779135042000,-287.0,0.00020731,2]
[422594706,1779135042000,-150.0,0.00020137,2]
[422594725,1779135042000,-150.0,0.00020731,2]
[422594721,1779135042000,-2405.55389864,0.00020705,2]
[422594715,1779135042000,-150.76109754,0.0002058,2]
[422594713,1779135042000,-401.5,0.00020381,2]
[422594719,1779135042000,-200.0,0.00020705,2]
[422594711,1779135042000,-2319.72410669,0.00020157,2]
[422594709,1779135042000,-200.0,0.00020157,2]
[422594717,1779135042000,-500.0,0.00020704,2]
[422594677,1779135042000,-492.0,0.0002,2]
[422594617,1779135042000,-9035.0,0.00018859,2]
[422594665,1779135042000,-400.0,0.0002,2]
[422594738,1779135042000,-163.09958891,0.00021,2]
[422594610,1779135042000,-927.0,0.00018791,2]
[422594619,1779135042000,-680.983923,0.00018887,2]
[422594611,1779135042000,-625.0,0.00018791,2]
[422594615,1779135042000,-810.11,0.000188,2]
[422594613,1779135042000,-1354.0,0.00018791,2]
[422594623,1779135042000,-46947.10731997,0.00019,2]
[422594621,1779135042000,-300.0,0.00018999,2]
[422594628,1779135042000,-181.0,0.00019,2]
[422594624,1779135042000,-398.11299808,0.00019,2]
[422594626,1779135042000,-161.0,0.00019,2]
[422594630,1779135042000,-391.0,0.00019,2]
[422594633,1779135042000,-157.0,0.00019,2]
[422594645,1779135042000,-2157.14243826,0.00019061,2]
[422594642,1779135042000,-338.0,0.00019,2]
[422594636,1779135042000,-170.02119813,0.00019,2]
[422594643,1779135042000,-200.0,0.00019061,2]
[422594669,1779135042000,-161.0,0.0002,2]
[422594667,1779135042000,-2000.0,0.0002,2]
[422594662,1779135042000,-300.0,0.00019999,2]
[422594658,1779135042000,-470.17833181,0.0001971,2]
[422594663,1779135042000,-2160.11340606,0.0002,15]
[422594660,1779135042000,-2855.28641335,0.000199,3]
[422594671,1779135042000,-181.0,0.0002,2]
[422594656,1779135042000,-2236.95670848,0.00019609,2]
[422594654,1779135042000,-200.0,0.00019609,2]
[422594647,1779135042000,-225.129368,0.00019075,2]
[422594651,1779135042000,-150.0,0.000192,2]
[422594640,1779135042000,-155.0,0.00019,2]
[422594638,1779135042000,-289.0,0.00019,2]
[422594649,1779135042000,-156.0,0.00019089,2]
[422594652,1779135042000,-470.17,0.0001924,2]
[422594747,1779135042000,-750.0,0.00021465,2]
[422594806,1779135042000,-1935.90615352,0.00023445,2]
[422594746,1779135042000,-699.91,0.00021282,2]
[422594782,1779135042000,-300.0,0.00022008,2]
[422594778,1779135042000,-289.0,0.00022,2]
[422594783,1779135042000,-5037.79875775,0.00022009,2]
[422594788,1779135042000,-275.23971926,0.00022118,21]
[422594792,1779135042000,-1267.75,0.00022466,2]
[422594799,1779135042000,-181.0,0.00023,2]
[422594793,1779135042000,-150.0,0.00022831,2]
[422594794,1779135042000,-200.0,0.00022897,2]
[422594790,1779135042000,-2682.57183977,0.00022349,2]
[422594795,1779135042000,-2781.82699784,0.00022897,2]
[422594800,1779135042000,-391.0,0.00023,2]
[422594801,1779135042000,-289.0,0.00023,2]
[422594791,1779135042000,-401.5,0.00022353,2]
[422594789,1779135042000,-200.0,0.00022349,2]
[422594796,1779135042000,-1153.83,0.00022999,2]
[422594797,1779135042000,-298.855429,0.00023,2]
[422594798,1779135042000,-161.0,0.00023,2]
[422594816,1779135042000,-340.23226657,0.00024,2]